{"text_format":"3","workbook":"xlsx","n_sheets":1,"sheets":["Izdevumu atskaite"],"not_rendered":{"images":2,"defined_names":12},"read":"whole","date_system":"1900"}

{"sheet":"Izdevumu atskaite","index":0,"n_rows":24,"n_cols":13,"rows_kept":24,"merged":[[3,2,3,3],[3,5,3,6],[3,9,3,10],[4,2,4,3],[4,5,4,6],[4,9,4,10],[5,2,5,3],[5,5,5,6],[5,9,5,10],[6,2,6,3],[6,5,6,6],[6,9,6,10],[7,9,7,10]]}
[null,"IZDEVUMU ATSKAITE"]
[null,"CONTOSO, LTD"]
[null,"123 South Main Street, North Buffalo, NY 12345"]
[null,"TĀLRUNIS",4255550121,null,"VĀRDS, UZVĀRDS","Antra Ābola",null,null,"MĒRĶIS","Ikgadējais pārdošanas seminārs",null,"NOBRAUKUMA IZDEVUMI",{"v":0.5,"d":"0.50 €/km"}]
[null,"FAKSS",4255550122,null,"NODAĻA","Pārdošana",null,null,"SĀKUMS",{"$f":"IFERROR(MIN(Izdevumi[DATUMS]),\"\")","v":"2018-06-04"},null,"MALTĪŠU IZDEVUMI",{"v":30,"d":"30.00 € par dienu"}]
[null,"E-PASTS","info@contoso.com",null,"AMATS","Rīkotājdirektors",null,null,"BEIGAS",{"$f":"IFERROR(MAX(Izdevumi[DATUMS]),\"\")","v":"2018-07-04"},null,"VIESNĪCU IZDEVUMI",{"v":200,"d":"200.00 € par nakti"}]
[null,"TĪMEKLIS","www.contoso.com",null,"VADĪTĀJS","Simons Eglītis",null,null,"SAGATAVOJA","Antra Ābola",null,"IZDEVUMI PAR TĀLRUŅA SARUNĀM",{"v":10,"d":"10.00 € par dienu"}]
[{"$nulls":8},"APSTIPRINĀJA","Simons Eglītis",null,"DAŽĀDI IZDEVUMI",{"v":50,"d":"50.00 € par dienu"}]
[]
[null,"DATUMS","KONTS","APRAKSTS","VIESNĪCA","TRANSPORTS","MALTĪTES","TĀLRUNIS","DAŽĀDI","ODOMETRS \nSĀKUMS","ODOMETRS \nBEIGAS","NOBRAUKUMS \nKOPĀ","KOPĀ "]
[null,{"$f":"TODAY()","v":"2018-06-04"},"Pārdošana","Nobraukums",{"$nulls":4},{"v":50,"d":"50.00 €"},{"v":11378.5,"d":"11,378.5 km"},{"v":11456.2,"d":"11,456.2 km"},{"$f":"IF(COUNTA(Izdevumi[[#This Row],[ODOMETRS \nSĀKUMS]:[ODOMETRS \nBEIGAS]])=2,(Izdevumi[[#This Row],[ODOMETRS \nBEIGAS]]-Izdevumi[[#This Row],[ODOMETRS \nSĀKUMS]])*NobraukumaIzdevumi,\"\")","v":{"v":38.850000000000364,"d":"38.85 €"}},{"$f":"IF(COUNTA(Izdevumi[[#This Row],[DATUMS]:[ODOMETRS \nBEIGAS]])=0,\"\",SUM(Izdevumi[[#This Row],[VIESNĪCA]:[TRANSPORTS]],Izdevumi[[#This Row],[MALTĪTES]:[DAŽĀDI]],((Izdevumi[[#This Row],[ODOMETRS \nBEIGAS]]-Izdevumi[[#This Row],[ODOMETRS \nSĀKUMS]])*(NobraukumaIzdevumi))))","v":{"v":88.85000000000036,"d":"88.85 €"}}]
[null,{"$f":"TODAY()+30","v":"2018-07-04"},"Pārdošana","Konference",{"v":445,"d":"445.00 €"},{"v":225,"d":"225.00 €"},{"v":20,"d":"20.00 €"},null,{"v":5,"d":"5.00 €"},{"v":11500,"d":"11,500.0 km"},{"v":11560,"d":"11,560.0 km"},{"$f":"IF(COUNTA(Izdevumi[[#This Row],[ODOMETRS \nSĀKUMS]:[ODOMETRS \nBEIGAS]])=2,(Izdevumi[[#This Row],[ODOMETRS \nBEIGAS]]-Izdevumi[[#This Row],[ODOMETRS \nSĀKUMS]])*NobraukumaIzdevumi,\"\")","v":{"v":30,"d":"30.00 €"}},{"$f":"IF(COUNTA(Izdevumi[[#This Row],[DATUMS]:[ODOMETRS \nBEIGAS]])=0,\"\",SUM(Izdevumi[[#This Row],[VIESNĪCA]:[TRANSPORTS]],Izdevumi[[#This Row],[MALTĪTES]:[DAŽĀDI]],((Izdevumi[[#This Row],[ODOMETRS \nBEIGAS]]-Izdevumi[[#This Row],[ODOMETRS \nSĀKUMS]])*(NobraukumaIzdevumi))))","v":{"v":725,"d":"725.00 €"}}]
[{"$nulls":11},{"$f":"IF(COUNTA(Izdevumi[[#This Row],[ODOMETRS \nSĀKUMS]:[ODOMETRS \nBEIGAS]])=2,(Izdevumi[[#This Row],[ODOMETRS \nBEIGAS]]-Izdevumi[[#This Row],[ODOMETRS \nSĀKUMS]])*NobraukumaIzdevumi,\"\")","v":""},{"$f":"IF(COUNTA(Izdevumi[[#This Row],[DATUMS]:[ODOMETRS \nBEIGAS]])=0,\"\",SUM(Izdevumi[[#This Row],[VIESNĪCA]:[TRANSPORTS]],Izdevumi[[#This Row],[MALTĪTES]:[DAŽĀDI]],((Izdevumi[[#This Row],[ODOMETRS \nBEIGAS]]-Izdevumi[[#This Row],[ODOMETRS \nSĀKUMS]])*(NobraukumaIzdevumi))))","v":""}]
[{"$nulls":11},{"$f":"IF(COUNTA(Izdevumi[[#This Row],[ODOMETRS \nSĀKUMS]:[ODOMETRS \nBEIGAS]])=2,(Izdevumi[[#This Row],[ODOMETRS \nBEIGAS]]-Izdevumi[[#This Row],[ODOMETRS \nSĀKUMS]])*NobraukumaIzdevumi,\"\")","v":""},{"$f":"IF(COUNTA(Izdevumi[[#This Row],[DATUMS]:[ODOMETRS \nBEIGAS]])=0,\"\",SUM(Izdevumi[[#This Row],[VIESNĪCA]:[TRANSPORTS]],Izdevumi[[#This Row],[MALTĪTES]:[DAŽĀDI]],((Izdevumi[[#This Row],[ODOMETRS \nBEIGAS]]-Izdevumi[[#This Row],[ODOMETRS \nSĀKUMS]])*(NobraukumaIzdevumi))))","v":""}]
[{"$nulls":11},{"$f":"IF(COUNTA(Izdevumi[[#This Row],[ODOMETRS \nSĀKUMS]:[ODOMETRS \nBEIGAS]])=2,(Izdevumi[[#This Row],[ODOMETRS \nBEIGAS]]-Izdevumi[[#This Row],[ODOMETRS \nSĀKUMS]])*NobraukumaIzdevumi,\"\")","v":""},{"$f":"IF(COUNTA(Izdevumi[[#This Row],[DATUMS]:[ODOMETRS \nBEIGAS]])=0,\"\",SUM(Izdevumi[[#This Row],[VIESNĪCA]:[TRANSPORTS]],Izdevumi[[#This Row],[MALTĪTES]:[DAŽĀDI]],((Izdevumi[[#This Row],[ODOMETRS \nBEIGAS]]-Izdevumi[[#This Row],[ODOMETRS \nSĀKUMS]])*(NobraukumaIzdevumi))))","v":""}]
[{"$nulls":11},{"$f":"IF(COUNTA(Izdevumi[[#This Row],[ODOMETRS \nSĀKUMS]:[ODOMETRS \nBEIGAS]])=2,(Izdevumi[[#This Row],[ODOMETRS \nBEIGAS]]-Izdevumi[[#This Row],[ODOMETRS \nSĀKUMS]])*NobraukumaIzdevumi,\"\")","v":""},{"$f":"IF(COUNTA(Izdevumi[[#This Row],[DATUMS]:[ODOMETRS \nBEIGAS]])=0,\"\",SUM(Izdevumi[[#This Row],[VIESNĪCA]:[TRANSPORTS]],Izdevumi[[#This Row],[MALTĪTES]:[DAŽĀDI]],((Izdevumi[[#This Row],[ODOMETRS \nBEIGAS]]-Izdevumi[[#This Row],[ODOMETRS \nSĀKUMS]])*(NobraukumaIzdevumi))))","v":""}]
[{"$nulls":11},{"$f":"IF(COUNTA(Izdevumi[[#This Row],[ODOMETRS \nSĀKUMS]:[ODOMETRS \nBEIGAS]])=2,(Izdevumi[[#This Row],[ODOMETRS \nBEIGAS]]-Izdevumi[[#This Row],[ODOMETRS \nSĀKUMS]])*NobraukumaIzdevumi,\"\")","v":""},{"$f":"IF(COUNTA(Izdevumi[[#This Row],[DATUMS]:[ODOMETRS \nBEIGAS]])=0,\"\",SUM(Izdevumi[[#This Row],[VIESNĪCA]:[TRANSPORTS]],Izdevumi[[#This Row],[MALTĪTES]:[DAŽĀDI]],((Izdevumi[[#This Row],[ODOMETRS \nBEIGAS]]-Izdevumi[[#This Row],[ODOMETRS \nSĀKUMS]])*(NobraukumaIzdevumi))))","v":""}]
[{"$nulls":11},{"$f":"IF(COUNTA(Izdevumi[[#This Row],[ODOMETRS \nSĀKUMS]:[ODOMETRS \nBEIGAS]])=2,(Izdevumi[[#This Row],[ODOMETRS \nBEIGAS]]-Izdevumi[[#This Row],[ODOMETRS \nSĀKUMS]])*NobraukumaIzdevumi,\"\")","v":""},{"$f":"IF(COUNTA(Izdevumi[[#This Row],[DATUMS]:[ODOMETRS \nBEIGAS]])=0,\"\",SUM(Izdevumi[[#This Row],[VIESNĪCA]:[TRANSPORTS]],Izdevumi[[#This Row],[MALTĪTES]:[DAŽĀDI]],((Izdevumi[[#This Row],[ODOMETRS \nBEIGAS]]-Izdevumi[[#This Row],[ODOMETRS \nSĀKUMS]])*(NobraukumaIzdevumi))))","v":""}]
[{"$nulls":11},{"$f":"IF(COUNTA(Izdevumi[[#This Row],[ODOMETRS \nSĀKUMS]:[ODOMETRS \nBEIGAS]])=2,(Izdevumi[[#This Row],[ODOMETRS \nBEIGAS]]-Izdevumi[[#This Row],[ODOMETRS \nSĀKUMS]])*NobraukumaIzdevumi,\"\")","v":""},{"$f":"IF(COUNTA(Izdevumi[[#This Row],[DATUMS]:[ODOMETRS \nBEIGAS]])=0,\"\",SUM(Izdevumi[[#This Row],[VIESNĪCA]:[TRANSPORTS]],Izdevumi[[#This Row],[MALTĪTES]:[DAŽĀDI]],((Izdevumi[[#This Row],[ODOMETRS \nBEIGAS]]-Izdevumi[[#This Row],[ODOMETRS \nSĀKUMS]])*(NobraukumaIzdevumi))))","v":""}]
[{"$nulls":11},{"$f":"IF(COUNTA(Izdevumi[[#This Row],[ODOMETRS \nSĀKUMS]:[ODOMETRS \nBEIGAS]])=2,(Izdevumi[[#This Row],[ODOMETRS \nBEIGAS]]-Izdevumi[[#This Row],[ODOMETRS \nSĀKUMS]])*NobraukumaIzdevumi,\"\")","v":""},{"$f":"IF(COUNTA(Izdevumi[[#This Row],[DATUMS]:[ODOMETRS \nBEIGAS]])=0,\"\",SUM(Izdevumi[[#This Row],[VIESNĪCA]:[TRANSPORTS]],Izdevumi[[#This Row],[MALTĪTES]:[DAŽĀDI]],((Izdevumi[[#This Row],[ODOMETRS \nBEIGAS]]-Izdevumi[[#This Row],[ODOMETRS \nSĀKUMS]])*(NobraukumaIzdevumi))))","v":""}]
[{"$nulls":11},{"$f":"IF(COUNTA(Izdevumi[[#This Row],[ODOMETRS \nSĀKUMS]:[ODOMETRS \nBEIGAS]])=2,(Izdevumi[[#This Row],[ODOMETRS \nBEIGAS]]-Izdevumi[[#This Row],[ODOMETRS \nSĀKUMS]])*NobraukumaIzdevumi,\"\")","v":""},{"$f":"IF(COUNTA(Izdevumi[[#This Row],[DATUMS]:[ODOMETRS \nBEIGAS]])=0,\"\",SUM(Izdevumi[[#This Row],[VIESNĪCA]:[TRANSPORTS]],Izdevumi[[#This Row],[MALTĪTES]:[DAŽĀDI]],((Izdevumi[[#This Row],[ODOMETRS \nBEIGAS]]-Izdevumi[[#This Row],[ODOMETRS \nSĀKUMS]])*(NobraukumaIzdevumi))))","v":""}]
[null,"KOPSUMMAS",null,null,{"$f":"SUBTOTAL(109,Izdevumi[VIESNĪCA])","v":{"v":445,"d":"445.00 €"}},{"$f":"SUBTOTAL(109,Izdevumi[TRANSPORTS])","v":{"v":225,"d":"225.00 €"}},{"$f":"SUBTOTAL(109,Izdevumi[MALTĪTES])","v":{"v":20,"d":"20.00 €"}},{"$f":"SUBTOTAL(109,Izdevumi[TĀLRUNIS])","v":0},{"$f":"SUBTOTAL(109,Izdevumi[DAŽĀDI])","v":{"v":55,"d":"55.00 €"}},{"$nulls":3},{"$f":"SUBTOTAL(109,Izdevumi[[KOPĀ ]])","v":{"v":813.8500000000004,"d":"813.85 €"}}]
[{"$nulls":11},"AVANSI",{"v":0,"d":"0.00 €"}]
[{"$nulls":11},"KOPĀ",{"$f":"Izdevumi[[#Totals],[KOPĀ ]]-Avansi","v":{"v":813.8500000000004,"d":"813.85 €"}}]